fUST/lending_fUST_20250511
["ID","MTS","AMOUNT","RATE_DAILY","PERIOD"]
[360656603,1746917456403,-486.02,9.315e-05,2]
[360656605,1746917456413,-313.15,9.315e-05,2]
[360656607,1746917456423,-170.38,9.315e-05,2]
[360656608,1746917456432,-871.51,9.315e-05,2]
[360656611,1746917456443,-400.0,9.315e-05,2]
[360656612,1746917456453,-400.0,9.315e-05,2]
[360656615,1746917456462,-441.5,9.315e-05,2]
[360656617,1746917456472,-400.0,9.315e-05,2]
[360656619,1746917456482,-400.0,9.315e-05,2]
[360656621,1746917456491,-400.0,9.315e-05,2]
[360656623,1746917456500,-400.0,9.315e-05,2]
[360656624,1746917456510,-364.53,9.315e-05,2]
[360656627,1746917456519,-400.0,9.315e-05,2]
[360656629,1746917456529,-400.0,9.315e-05,2]
[360656631,1746917456538,-400.0,9.315e-05,2]
[360656633,1746917456548,-400.0,9.315e-05,2]
[360656635,1746917456558,-400.0,9.315e-05,2]
[360656637,1746917456568,-151.0,9.315e-05,2]
[360656639,1746917456579,-400.0,9.315e-05,2]
[360656641,1746917456589,-400.0,9.589e-05,2]
[360656643,1746917456599,-400.0,9.589e-05,2]
[360656645,1746917456609,-400.0,9.589e-05,2]
[360656647,1746917456619,-400.0,9.589e-05,2]
[360656649,1746917456629,-400.0,9.589e-05,2]
[360656651,1746917456638,-400.0,9.589e-05,2]
[360656653,1746917456648,-400.0,9.589e-05,2]
[360656655,1746917456658,-400.0,9.589e-05,2]
[360656657,1746917456667,-400.0,9.589e-05,2]
[360656659,1746917456676,-358.16,9.589e-05,2]
[360656661,1746917456686,-548.35,9.589e-05,2]
[360656663,1746917456695,-400.0,9.589e-05,2]
[360656665,1746917456705,-542.91,9.589e-05,2]
[360656667,1746917456715,-617.59,9.589e-05,2]
[360656669,1746917456725,-400.0,9.589e-05,2]
[360656671,1746917456735,-400.0,9.589e-05,2]
[360656673,1746917456745,-400.0,9.589e-05,2]
[360656675,1746917456755,-892.34,9.589e-05,2]
[360656677,1746917456766,-400.0,9.589e-05,2]
[360656679,1746917456778,-400.0,9.589e-05,2]
[360656681,1746917456787,-486.02,9.589e-05,2]
[360656683,1746917456798,-871.51,9.589e-05,2]
[360656685,1746917456807,-400.0,9.589e-05,2]
[360656687,1746917456817,-400.0,9.589e-05,2]
[360656689,1746917456830,-441.5,9.589e-05,2]
[360656691,1746917456840,-400.0,9.589e-05,2]
[360656693,1746917456849,-400.0,9.589e-05,2]
[360656695,1746917456859,-400.0,9.589e-05,2]
[360656697,1746917456869,-400.0,9.589e-05,2]
[360656699,1746917456878,-259.01,9.589e-05,2]
[360656700,1746917456888,-400.0,9.589e-05,2]
[360656701,1746917456898,-400.0,9.589e-05,2]
[360656702,1746917456908,-481.0,9.589e-05,2]
[360656703,1746917456918,-400.0,9.589e-05,2]
[360656704,1746917456929,-400.0,9.589e-05,2]
[360656705,1746917456939,-500.0,9.658e-05,2]
[360656706,1746917456947,-340.44994791,9.658e-05,2]
[360656707,1746917456957,-502.04367879,9.658e-05,2]
[360656708,1746917456966,-151.0,9.698e-05,2]
[360656709,1746917456976,-150.194,9.797e-05,2]
[360656710,1746917456986,-150.401,9.797e-05,2]
[360656711,1746917456995,-500.0,9.844e-05,2]
[360656712,1746917457005,-400.0,9.863e-05,2]
[360656713,1746917457014,-545.82,9.863e-05,2]
[360656714,1746917457023,-400.0,9.863e-05,2]
[360656715,1746917457034,-400.0,9.863e-05,2]
[360656716,1746917457044,-231.95,9.863e-05,2]
[360656718,1746917457053,-188.13932293,9.863e-05,2]
[360656720,1746917457063,-196.48,9.863e-05,2]
[360656722,1746917457073,-199.715097,9.863e-05,2]
[360656724,1746917457082,-400.0,9.863e-05,2]
[360656725,1746917457092,-400.0,9.863e-05,2]
[360656727,1746917457101,-151.0,9.863e-05,2]
[360656729,1746917457111,-290.16,9.863e-05,2]
[360656731,1746917457121,-151.0,9.863e-05,2]
[360656733,1746917457130,-617.59,9.863e-05,2]
[360656735,1746917457139,-151.0,9.863e-05,2]
[360656737,1746917457149,-398.39,9.863e-05,2]
[360656739,1746917457159,-400.0,9.863e-05,2]
[360656742,1746917457170,-400.0,9.863e-05,2]
[360656744,1746917457179,-892.34,9.863e-05,2]
[360656746,1746917457191,-400.0,9.863e-05,2]
[360656748,1746917457200,-151.0,9.863e-05,2]
[360656750,1746917457210,-151.0,9.863e-05,2]
[360656752,1746917457219,-151.0,9.863e-05,2]
[360656753,1746917457230,-228.761284,9.863e-05,2]
[360656755,1746917457239,-151.0,9.863e-05,2]
[360656757,1746917457249,-293.37,9.863e-05,2]
[360656759,1746917457258,-486.02,9.863e-05,2]
[360656761,1746917457268,-151.0,9.863e-05,2]
[360656763,1746917457278,-871.51,9.863e-05,2]
[360656765,1746917457288,-400.0,9.863e-05,2]
[360656767,1746917457297,-400.0,9.863e-05,2]
[360656769,1746917457307,-441.5,9.863e-05,2]
[360656771,1746917457318,-400.0,9.863e-05,2]
[360656773,1746917457328,-400.0,9.863e-05,2]
[360656775,1746917457339,-304.17,9.863e-05,2]
[360656777,1746917457350,-400.0,9.863e-05,2]
[360656779,1746917457360,-400.0,9.863e-05,2]
[360656781,1746917457372,-400.0,9.863e-05,2]
[360656783,1746917457383,-400.0,9.863e-05,2]
[360656785,1746917457394,-478.47,9.863e-05,2]
[360656787,1746917457404,-587.0,9.932e-05,2]
[360656790,1746917457415,-214.00301915,9.986e-05,2]
[360656791,1746917457424,-156.445889,0.0001,2]
[360656793,1746917457434,-151.0,0.0001,2]
[360656795,1746917457444,-151.0,0.0001,2]
[360656797,1746917457453,-250.0,0.0001,2]
[360656799,1746917457462,-2897.73787201,0.0001,2]
[360656801,1746917457472,-151.0,0.0001,2]
[360656803,1746917457482,-151.0,0.0001,2]
[360656806,1746917457492,-151.0,0.0001,2]
[360656808,1746917457501,-2200.0,0.0001,2]
[360656810,1746917457511,-151.0,0.0001,2]
[360656812,1746917457520,-151.0,0.0001,2]
[360656814,1746917457529,-151.0,0.0001,2]
[360656816,1746917457539,-174.973756,0.0001,2]
[360656818,1746917457548,-151.0,0.0001,2]
[360656820,1746917457558,-151.0,0.0001,2]
[360656821,1746917457567,-151.0,0.0001,2]
[360656823,1746917457577,-151.0,0.0001,2]
[360656825,1746917457587,-151.0,0.0001,2]
[360656828,1746917457597,-151.0,0.0001,2]
[360656830,1746917457607,-28110.25054281,0.0001,2]
[360656832,1746917457616,-28110.25054274,0.0001,2]
[360656834,1746917457626,-151.0,0.0001,2]
[360656836,1746917457636,-151.0,0.0001,2]
[360656838,1746917457646,-151.0,0.0001,2]
[360656840,1746917457655,-160.0,0.00010023,2]
[360656842,1746917457665,-842.34118046,0.00010023,2]
[360656844,1746917457675,-422.13686889,0.00010023,2]
[360656846,1746917457685,-160.0,0.00010023,2]
[360656848,1746917457696,-160.0,0.00010023,2]
[360656850,1746917457706,-160.0,0.00010023,2]
[360656852,1746917457715,-160.0,0.00010023,2]
[360656854,1746917457726,-160.0,0.00010023,2]
[360656856,1746917457735,-160.0,0.00010023,2]
[360656858,1746917457745,-212.13671436,0.00010023,2]
[360656860,1746917457754,-12619.28597579,0.00010023,2]
[360656862,1746917457767,-160.0,0.00010023,2]
[360656864,1746917457777,-151.0,0.00010023,2]
[360656866,1746917457787,-28110.25054274,0.00010134,2]
[360656867,1746917457796,-152.146626,0.00010135,2]
[360656870,1746917457806,-400.0,0.00010136,2]
[360656871,1746917457815,-400.0,0.00010136,2]
[360656873,1746917457827,-400.0,0.00010136,2]
[360656876,1746917457839,-400.0,0.00010136,2]
[360656878,1746917457849,-400.0,0.00010136,2]
[360656880,1746917457858,-151.0,0.00010136,2]
[360656882,1746917457868,-176.681835,0.00010136,2]
[360656884,1746917457878,-151.0,0.00010136,2]
[360656900,1746917458022,-151.0,0.00010136,2]
[360656902,1746917458033,-617.59,0.00010136,2]
[360656904,1746917458043,-400.0,0.00010136,2]
[360656906,1746917458053,-400.0,0.00010136,2]
[360656908,1746917458062,-892.34,0.00010136,2]
[360656910,1746917458072,-241.95,0.00010136,2]
[360656912,1746917458082,-486.02,0.00010136,2]
[360656914,1746917458092,-871.51,0.00010136,2]
[360656916,1746917458101,-400.0,0.00010136,2]
[360656918,1746917458111,-150.71,0.00010136,2]
[360656920,1746917458121,-441.5,0.00010136,2]
[360656922,1746917458130,-400.0,0.00010136,2]
[360656924,1746917458142,-400.0,0.00010136,2]
[360656926,1746917458152,-515.99087871,0.00010136,2]
[360656928,1746917458164,-400.0,0.00010136,2]
[360656930,1746917458174,-400.0,0.00010136,2]
[360656932,1746917458184,-400.0,0.00010136,2]
[360656934,1746917458194,-151.0,0.00010136,2]
[360656936,1746917458204,-2715.5,0.0001041,2]
[360656938,1746917458214,-2715.5,0.0001041,2]
[360656940,1746917458224,-2715.5,0.0001041,2]
[360656942,1746917458233,-2715.5,0.0001041,2]
[360656944,1746917458243,-2715.5,0.0001041,2]
[360656946,1746917458253,-2715.5,0.0001041,2]
[360656948,1746917458262,-2715.5,0.0001041,2]
[360656950,1746917458272,-151.0,0.0001041,2]
[360656952,1746917458281,-151.0,0.0001041,2]
[360656954,1746917458291,-151.0,0.0001041,2]
[360656956,1746917458301,-400.0,0.0001041,2]
[360656958,1746917458311,-400.0,0.0001041,2]
[360656960,1746917458320,-400.0,0.0001041,2]
[360656962,1746917458330,-400.0,0.0001041,2]
[360656964,1746917458340,-400.0,0.0001041,2]
[360656966,1746917458350,-617.59,0.0001041,2]
[360656968,1746917458359,-151.0,0.0001041,2]
[360656970,1746917458369,-400.0,0.0001041,2]
[360656973,1746917458379,-400.0,0.0001041,2]
[360656974,1746917458389,-892.34,0.0001041,2]
[360656977,1746917458399,-151.0,0.0001041,2]
[360656979,1746917458408,-151.0,0.0001041,2]
[360656981,1746917458418,-486.02,0.0001041,2]
[360656983,1746917458428,-151.0,0.0001041,2]
[360656985,1746917458438,-871.51,0.0001041,2]
[360656987,1746917458448,-400.0,0.0001041,2]
[360656988,1746917458458,-441.5,0.0001041,2]
[360656989,1746917458468,-400.0,0.0001041,2]
[360656990,1746917458478,-400.0,0.0001041,2]
[360656991,1746917458488,-171.064177,0.0001041,2]
[360656992,1746917458498,-490.61,0.0001041,2]
[360656993,1746917458509,-400.0,0.0001041,2]
[360656994,1746917458519,-400.0,0.0001041,2]
[360656995,1746917458529,-155.0,0.00010536,2]
[360656996,1746917458539,-158.50518114,0.00010684,2]
[360656997,1746917458549,-400.0,0.00010684,2]
[360656998,1746917458558,-400.0,0.00010684,2]
[360656999,1746917458568,-400.0,0.00010684,2]
[360657000,1746917458578,-238.69491307,0.00010684,2]
[360657001,1746917458588,-617.59,0.00010684,2]
[360657002,1746917458598,-364.68,0.00010684,2]
[360657003,1746917458607,-497.32999999,0.00010684,2]
[360657004,1746917458617,-892.34,0.00010684,2]
[360657005,1746917458627,-486.02,0.00010684,2]
[360657006,1746917458637,-871.51,0.00010684,2]
[360657007,1746917458647,-373.38353383,0.00010684,2]
[360657008,1746917458656,-441.5,0.00010684,2]
[360657009,1746917458666,-400.0,0.00010684,2]
[360657010,1746917458676,-400.0,0.00010684,2]
[360657012,1746917458685,-400.0,0.00010684,2]
[360657013,1746917458696,-400.0,0.00010684,2]
[360657015,1746917458706,-823.0,0.00010925,2]
[360657017,1746917458716,-151.0,0.00010958,2]
[360657018,1746917458725,-151.0,0.00010958,2]
[360657019,1746917458735,-400.0,0.00010958,2]
[360657020,1746917458745,-151.0,0.00010958,2]
[360657021,1746917458754,-400.0,0.00010958,2]
[360657022,1746917458764,-400.0,0.00010958,2]
[360657023,1746917458774,-617.59,0.00010958,2]
[360657024,1746917458783,-892.34,0.00010958,2]
[360657025,1746917458793,-486.02,0.00010958,2]
[360657026,1746917458803,-871.51,0.00010958,2]
[360657027,1746917458813,-441.5,0.00010958,2]
[360657028,1746917458825,-312.6,0.00010958,2]
[360657029,1746917458834,-400.0,0.00010958,2]
[360657030,1746917458845,-400.0,0.00010958,2]
[360657031,1746917458855,-467.76250091,0.00010958,2]
[360657032,1746917458865,-500.0,0.00010959,2]
[360657033,1746917458874,-151.0,0.00011,2]
[360657034,1746917458884,-151.0,0.00011,2]
[360657035,1746917458894,-151.0,0.00011,2]
[360657036,1746917458905,-293.602,0.00011013,2]
[360657037,1746917458915,-28110.25054274,0.00011052,2]
[360657038,1746917458924,-151.0,0.00011052,2]
[360657039,1746917458934,-151.0,0.00011052,2]
[360657040,1746917458945,-151.0,0.000111,2]
[360657041,1746917458955,-151.0,0.000112,2]
[360657042,1746917458965,-151.0,0.000112,2]
[360657043,1746917458974,-400.0,0.00011232,2]
[360657044,1746917458984,-400.0,0.00011232,2]
[360657045,1746917458994,-400.0,0.00011232,2]
[360657046,1746917459003,-617.59,0.00011232,2]
[360657047,1746917459013,-151.0,0.00011232,2]
[360657048,1746917459023,-892.34,0.00011232,2]
[360657049,1746917459033,-151.0,0.00011232,2]
[360657050,1746917459043,-151.0,0.00011232,2]
[360657051,1746917459053,-486.02,0.00011232,2]
[360657052,1746917459063,-871.51,0.00011232,2]
[360657053,1746917459073,-151.0,0.00011232,2]
[360657054,1746917459083,-441.5,0.00011232,2]
[360657055,1746917459092,-400.0,0.00011232,2]
[360657056,1746917459102,-400.0,0.00011232,2]
[360657057,1746917459112,-151.0,0.000114,2]
[360657058,1746917459121,-151.0,0.000114,2]
[360657059,1746917459131,-151.0,0.000115,2]
[360657060,1746917459141,-3539.994942,0.000115,2]
[360657061,1746917459150,-151.0,0.000115,2]
[360657062,1746917459160,-151.0,0.000115,2]
[360657063,1746917459170,-888.32149212,0.00011506,2]
[360657064,1746917459180,-400.0,0.00011506,2]
[360657065,1746917459190,-400.0,0.00011506,2]
[360657066,1746917459200,-617.59,0.00011506,2]
[360657067,1746917459210,-892.34,0.00011506,2]
[360657068,1746917459219,-486.02,0.00011506,2]
[360657069,1746917459229,-871.51,0.00011506,2]
[360657070,1746917459240,-441.5,0.00011506,2]
[360657071,1746917459249,-400.0,0.00011506,2]
[360657072,1746917459259,-503.0,0.00011506,2]
[360657073,1746917459268,-503.0,0.00011506,2]
[360657074,1746917459278,-191.66,0.00011506,2]
[360657075,1746917459288,-503.0,0.00011506,2]
[360657076,1746917459298,-503.0,0.00011506,2]
[360657077,1746917459309,-503.0,0.00011506,2]
[360657079,1746917459318,-503.0,0.00011506,2]
[360657080,1746917459328,-503.0,0.00011506,2]
[360657081,1746917459337,-503.0,0.00011506,2]
[360657082,1746917459346,-503.0,0.00011506,2]
[360657083,1746917459356,-503.0,0.00011506,2]
[360657084,1746917459366,-503.0,0.00011506,2]
[360657085,1746917459376,-503.0,0.00011506,2]
[360657086,1746917459386,-503.0,0.00011506,2]
[360657087,1746917459396,-503.0,0.00011506,2]
[360657088,1746917459406,-503.0,0.00011506,2]
[360657089,1746917459416,-503.0,0.00011506,2]
[360657090,1746917459426,-503.0,0.00011506,2]
[360657091,1746917459436,-503.0,0.00011506,2]
[360657092,1746917459447,-503.0,0.00011506,2]
[360657093,1746917459457,-503.0,0.00011506,2]
[360657094,1746917459467,-503.0,0.00011506,2]
[360657095,1746917459476,-503.0,0.00011506,2]
[360657096,1746917459486,-503.0,0.00011506,2]
[360657097,1746917459495,-619.29041165,0.00011506,2]
[360657098,1746917459505,-151.0,0.000116,2]
[360657099,1746917459515,-151.0,0.000116,2]
[360657100,1746917459525,-151.0,0.000117,2]
[360657101,1746917459535,-400.0,0.0001178,2]
[360657102,1746917459544,-410.87200538,0.0001178,2]
[360657103,1746917459555,-617.59,0.0001178,2]
[360657104,1746917459565,-892.34,0.0001178,2]
[360657105,1746917459575,-486.02,0.0001178,2]
[360657106,1746917459585,-871.51,0.0001178,2]
[360657107,1746917459595,-441.5,0.0001178,2]
[360657108,1746917459604,-400.0,0.0001178,2]
[360657109,1746917459614,-151.0,0.000118,2]
[360657110,1746917459623,-151.0,0.000119,2]
[360657111,1746917459633,-151.0,0.000119,2]
[360657112,1746917459643,-151.0,0.000119,2]
[360657113,1746917459652,-151.0,0.000119,2]
[360657114,1746917459662,-28110.25054274,0.00011969,2]
[360657115,1746917459672,-151.0,0.00011969,2]
[360657116,1746917459681,-151.0,0.00011969,2]
[360657117,1746917459692,-152.523189,0.00011969,2]
[360657118,1746917459701,-151.0,0.00011969,2]
[360657119,1746917459711,-151.0,0.00011969,2]
[360657120,1746917459721,-151.0,0.00011969,2]
[360657121,1746917459731,-151.0,0.00012,2]
[360657122,1746917459740,-151.0,0.00012,2]
[360657123,1746917459749,-1152.0,0.00012017,2]
[360657124,1746917459757,-400.0,0.00012054,2]
[360657125,1746917459765,-617.59,0.00012054,2]
[360657126,1746917459774,-892.34,0.00012054,2]
[360657127,1746917459782,-486.02,0.00012054,2]
[360657128,1746917459790,-871.51,0.00012054,2]
[360657129,1746917459800,-441.5,0.00012054,2]
[360657130,1746917459809,-400.0,0.00012054,2]
[360657131,1746917459819,-151.0,0.00012055,2]
[360657132,1746917459829,-151.0,0.00012055,2]
[360657133,1746917459839,-151.0,0.00012055,2]
[360657134,1746917459848,-151.0,0.000121,2]
[360657135,1746917459858,-151.0,0.000121,2]
[360657136,1746917459867,-16417.29724157,0.00012129,2]
[360657137,1746917459878,-263.113715,0.00012129,2]
[360657138,1746917459888,-151.0,0.00012129,2]
[360657139,1746917459898,-151.0,0.000122,2]
[360657140,1746917459908,-151.0,0.000122,2]
[360657141,1746917459918,-151.0,0.000122,2]
[360657142,1746917459927,-151.0,0.000122,2]
[360657143,1746917459936,-4455.0,0.000122,2]
[360657144,1746917459946,-98652.94459876,0.00012227,3]
[360657145,1746917459955,-172547.68585818,0.00012227,2]
[360657161,1746917469159,250.0,0.00016,30]
[360657162,1746917469548,250.0,0.00014,30]
[360657163,1746917469876,449.728816,0.00012,30]
[360657166,1746917545985,15361.1210011,7.397e-05,2]
[360657168,1746917608311,3000.0,0.00013,30]
[360657169,1746917608683,3000.0,0.0001301,30]
[360657170,1746917609413,3000.0,0.0001302,30]
[360657171,1746917609745,3000.0,0.0001303,30]
[360657172,1746917610063,3000.0,0.0001304,30]
[360657173,1746917610790,3000.0,0.0001305,30]
[360657174,1746917611129,3000.0,0.0001306,30]
[360657175,1746917611544,3000.0,0.0001307,30]
[360657176,1746917611911,3000.0,0.0001308,30]
[360657177,1746917612316,3000.0,0.0001309,30]
[360657178,1746917612737,3000.0,0.000131,30]
[360657179,1746917613285,2114.50429879,0.0001311,30]
[360657180,1746917613312,885.49570121,0.0001311,30]
[360657181,1746917613562,3000.0,0.0001312,30]
[360657182,1746917613885,2781.39413844,0.0001313,30]
[360657183,1746917613910,218.60586156,0.0001313,30]
[360657184,1746917614254,3254.814004,0.0001314,30]
[360657185,1746917720816,172.86218643,0.0002,120]
[360657193,1746918195477,250.0,7.958e-05,2]
[360657261,1746918631899,-300.0,8.189e-05,2]
[360657263,1746918631909,-1020.85925227,8.189e-05,2]
[360657272,1746918632093,-179.14074773,8.189e-05,2]
[360657273,1746918632103,-220.0,8.189e-05,2]
[360657274,1746918632113,-500.0,8.19e-05,2]
[360657275,1746918632122,-500.0,8.19e-05,2]
[360657276,1746918632132,-596.31228119,8.19e-05,2]
[360657277,1746918632142,-413.31105806,8.19e-05,2]
[360657278,1746918632151,-500.0,8.19e-05,2]
[360657279,1746918632161,-500.0,8.19e-05,2]
[360657281,1746918632170,-500.0,8.19e-05,2]
[360657283,1746918632179,-500.0,8.19e-05,2]
[360657285,1746918632191,-410.16927868,8.19e-05,2]
[360657287,1746918632203,-500.0,8.19e-05,2]
[360657289,1746918632211,-179.92677457,8.19e-05,2]
[360657291,1746918632221,-500.0,8.19e-05,2]
[360657293,1746918632231,-500.0,8.19e-05,2]
[360657295,1746918632240,-152.27349545,8.192e-05,2]
[360657297,1746918632250,-400.0,8.219e-05,2]
[360657298,1746918632259,-400.0,8.219e-05,2]
[360657299,1746918632268,-400.0,8.219e-05,2]
[360657300,1746918632279,-400.0,8.219e-05,2]
[360657301,1746918632289,-400.0,8.219e-05,2]
[360657302,1746918632299,-400.0,8.219e-05,2]
[360657303,1746918632309,-400.0,8.219e-05,2]
[360657304,1746918632318,-400.0,8.219e-05,2]
[360657305,1746918632327,-420.12037511,8.219e-05,2]
[360657306,1746918632336,-400.0,8.219e-05,2]
[360657307,1746918632345,-400.0,8.219e-05,2]
[360657308,1746918632354,-400.0,8.219e-05,2]
[360657309,1746918632364,-400.0,8.219e-05,2]
[360657310,1746918632374,-400.0,8.219e-05,2]
[360657311,1746918632383,-400.0,8.219e-05,2]
[360657312,1746918632394,-400.0,8.219e-05,2]
[360657313,1746918632403,-400.0,8.219e-05,2]
[360657314,1746918632413,-400.0,8.219e-05,2]
[360657315,1746918632422,-400.0,8.219e-05,2]
[360657316,1746918632432,-400.0,8.219e-05,2]
[360657317,1746918632441,-400.0,8.219e-05,2]
[360657318,1746918632450,-400.0,8.219e-05,2]
[360657319,1746918632459,-400.0,8.219e-05,2]
[360657320,1746918632470,-400.0,8.219e-05,2]
[360657321,1746918632480,-400.0,8.219e-05,2]
[360657322,1746918632489,-400.0,8.219e-05,2]
[360657323,1746918632498,-400.0,8.219e-05,2]
[360657324,1746918632507,-400.0,8.219e-05,2]
[360657325,1746918632517,-494.59643183,8.219e-05,2]
[360657326,1746918632526,-400.0,8.219e-05,2]
[360657327,1746918632535,-400.0,8.219e-05,2]
[360657328,1746918632545,-400.0,8.219e-05,2]
[360657329,1746918632555,-400.0,8.219e-05,2]
[360657330,1746918632564,-400.0,8.219e-05,2]
[360657331,1746918632573,-400.0,8.219e-05,2]
[360657332,1746918632583,-400.0,8.219e-05,2]
[360657333,1746918632592,-400.0,8.219e-05,2]
[360657334,1746918632601,-403.18102126,8.219e-05,2]
[360657335,1746918632611,-400.0,8.219e-05,2]
[360657336,1746918632622,-400.0,8.219e-05,2]
[360657337,1746918632632,-400.0,8.219e-05,2]
[360657338,1746918632643,-400.0,8.219e-05,2]
[360657339,1746918632652,-400.0,8.219e-05,2]
[360657340,1746918632662,-444.25,8.219e-05,2]
[360657341,1746918632671,-400.0,8.219e-05,2]
[360657342,1746918632680,-400.0,8.219e-05,2]
[360657343,1746918632690,-400.0,8.219e-05,2]
[360657344,1746918632699,-400.0,8.219e-05,2]
[360657345,1746918632709,-400.0,8.219e-05,2]
[360657346,1746918632718,-400.0,8.219e-05,2]
[360657347,1746918632728,-400.0,8.219e-05,2]
[360657348,1746918632737,-400.0,8.219e-05,2]
[360657349,1746918632747,-400.0,8.219e-05,2]
[360657350,1746918632756,-400.0,8.219e-05,2]
[360657351,1746918632765,-400.0,8.219e-05,2]
[360657352,1746918632777,-400.0,8.219e-05,2]
[360657353,1746918632786,-400.0,8.219e-05,2]
[360657354,1746918632796,-400.0,8.219e-05,2]
[360657355,1746918632805,-400.0,8.219e-05,2]
[360657356,1746918632815,-400.0,8.219e-05,2]
[360657357,1746918632824,-400.0,8.219e-05,2]
[360657358,1746918632834,-400.0,8.219e-05,2]
[360657359,1746918632843,-400.0,8.219e-05,2]
[360657360,1746918632853,-400.0,8.219e-05,2]
[360657361,1746918632863,-400.0,8.219e-05,2]
[360657362,1746918632872,-400.0,8.219e-05,2]
[360657363,1746918632882,-400.0,8.219e-05,2]
[360657364,1746918632894,-400.0,8.219e-05,2]
[360657365,1746918632904,-400.0,8.219e-05,2]
[360657366,1746918632913,-400.0,8.219e-05,2]
[360657367,1746918632923,-403.98330489,8.219e-05,2]
[360657368,1746918632934,-400.0,8.219e-05,2]
[360657369,1746918632943,-400.0,8.219e-05,2]
[360657370,1746918632954,-400.0,8.219e-05,2]
[360657371,1746918632963,-400.0,8.219e-05,2]
[360657372,1746918632973,-400.0,8.219e-05,2]
[360657373,1746918632983,-400.0,8.219e-05,2]
[360657374,1746918632994,-400.0,8.219e-05,2]
[360657375,1746918633003,-400.0,8.219e-05,2]
[360657376,1746918633013,-400.0,8.219e-05,2]
[360657377,1746918633022,-283.69828778,8.219e-05,2]
[360657378,1746918633032,-400.0,8.219e-05,2]
[360657379,1746918633041,-400.0,8.219e-05,2]
[360657380,1746918633051,-400.0,8.219e-05,2]
[360657381,1746918633060,-400.0,8.219e-05,2]
[360657382,1746918633069,-400.0,8.219e-05,2]
[360657383,1746918633079,-400.0,8.219e-05,2]
[360657384,1746918633088,-400.0,8.219e-05,2]
[360657385,1746918633099,-400.0,8.219e-05,2]
[360657386,1746918633108,-106.97605941,8.219e-05,2]
[360657391,1746918637767,-293.02394059,8.219e-05,2]
[360657392,1746918637777,-400.0,8.219e-05,2]
[360657393,1746918637786,-400.0,8.219e-05,2]
[360657394,1746918637796,-400.0,8.219e-05,2]
[360657395,1746918637806,-400.0,8.219e-05,2]
[360657396,1746918637815,-400.0,8.219e-05,2]
[360657397,1746918637825,-400.0,8.219e-05,2]
[360657398,1746918637834,-111.90165563,8.219e-05,2]
[360657399,1746918637847,-288.09834437,8.219e-05,2]
[360657400,1746918637857,-400.0,8.219e-05,2]
[360657401,1746918637871,-400.0,8.219e-05,2]
[360657402,1746918637881,-400.0,8.219e-05,2]
[360657403,1746918637892,-400.0,8.219e-05,2]
[360657404,1746918637903,-400.0,8.219e-05,2]
[360657405,1746918637912,-281.85165547,8.219e-05,2]
[360657463,1746918640221,-118.14834453,8.219e-05,2]
[360657464,1746918640231,-400.0,8.219e-05,2]
[360657465,1746918640241,-400.0,8.219e-05,2]
[360657466,1746918640250,-400.0,8.219e-05,2]
[360657467,1746918640260,-400.0,8.219e-05,2]
[360657468,1746918640273,-400.0,8.219e-05,2]